[Event "Titled Tuesday Blitz May 03 Late 2022"]
[White "Avalos Parra, Joao"]
[Black "Prohorov, Olexandr"]
[WhiteFideId "3402541"]
[BlackFideId "14105578"]
[WhiteElo "2173"]
[BlackElo "1993"]
[Result "1-0"]
[Round "06"]
[TimeControl "180+1"]
[Date "2022.05.03"]
[WhiteClock "0:00:08"]
[BlackClock "0:00:03"]

1. d4 {[%clk 0:03:00]}  g6 {[%clk 0:02:59]} 2. c4 {[%clk 0:03:01]}  Bg7 {[%clk 0:02:59]} 3. Nc3 {[%clk 0:03:01]}  c5 {[%clk 0:03:00]} 4. d5 {[%clk 0:03:00]}  Bxc3+ {[%clk 0:03:01]} 5. bxc3 {[%clk 0:03:00]}  f5 {[%clk 0:03:01]} 6. Nf3 {[%clk 0:02:59]}  d6 {[%clk 0:03:01]} 7. h4 {[%clk 0:02:57]}  Nf6 {[%clk 0:03:01]} 8. h5 {[%clk 0:02:52]}  Nxh5 {[%clk 0:02:55]} 9. Rxh5 {[%clk 0:02:50]}  gxh5 {[%clk 0:02:55]} 10. Qd3 {[%clk 0:02:12]}  O-O {[%clk 0:02:52]} 11. Bh6 {[%clk 0:02:09]}  Rf7 {[%clk 0:02:47]} 12. Qe3 {[%clk 0:01:57]}  Nd7 {[%clk 0:02:43]} 13. Qg5+ {[%clk 0:01:57]}  Kh8 {[%clk 0:02:42]} 14. Qxh5 {[%clk 0:01:58]}  Qg8 {[%clk 0:02:37]} 15. e3 {[%clk 0:01:28]}  Nf6 {[%clk 0:02:35]} 16. Qh4 {[%clk 0:01:20]}  Qg4 {[%clk 0:02:35]} 17. Qh2 {[%clk 0:01:19]}  Bd7 {[%clk 0:02:29]} 18. Ng5 {[%clk 0:01:15]}  Rg7 {[%clk 0:02:23]} 19. Be2 {[%clk 0:01:12]}  Rxg5 {[%clk 0:02:15]} 20. Bxg4 {[%clk 0:01:10]}  Rxg4 {[%clk 0:02:16]} 21. Bf4 {[%clk 0:01:06]}  Rag8 {[%clk 0:02:10]} 22. g3 {[%clk 0:01:06]}  b6 {[%clk 0:02:06]} 23. O-O-O {[%clk 0:01:06]}  R4g6 {[%clk 0:01:59]} 24. Rh1 {[%clk 0:01:05]}  b5 {[%clk 0:01:54]} 25. Qg2 {[%clk 0:00:34]}  bxc4 {[%clk 0:01:52]} 26. Rh6 {[%clk 0:00:32]}  Rxh6 {[%clk 0:01:40]} 27. Bxh6 {[%clk 0:00:33]}  Rg6 {[%clk 0:01:37]} 28. Bf4 {[%clk 0:00:31]}  Kg8 {[%clk 0:01:34]} 29. Qf1 {[%clk 0:00:31]}  Bb5 {[%clk 0:01:29]} 30. Qd1 {[%clk 0:00:31]}  Kf7 {[%clk 0:01:19]} 31. a4 {[%clk 0:00:30]}  Be8 {[%clk 0:01:16]} 32. Qe2 {[%clk 0:00:28]}  Bxa4 {[%clk 0:01:15]} 33. Qxc4 {[%clk 0:00:28]}  Bd7 {[%clk 0:01:11]} 34. Qa2 {[%clk 0:00:26]}  a6 {[%clk 0:01:03]} 35. c4 {[%clk 0:00:20]}  Ne4 {[%clk 0:01:00]} 36. Qxa6 {[%clk 0:00:19]}  Nxf2 {[%clk 0:00:58]} 37. Qb7 {[%clk 0:00:18]}  Ke8 {[%clk 0:00:51]} 38. Qb8+ {[%clk 0:00:17]}  Kf7 {[%clk 0:00:51]} 39. Qh8 {[%clk 0:00:18]}  Ne4 {[%clk 0:00:40]} 40. Qxh7+ {[%clk 0:00:17]}  Rg7 {[%clk 0:00:41]} 41. Qh5+ {[%clk 0:00:17]}  Kg8 {[%clk 0:00:38]} 42. Qh4 {[%clk 0:00:14]}  Nf6 {[%clk 0:00:34]} 43. Bh6 {[%clk 0:00:13]}  Rg6 {[%clk 0:00:32]} 44. Bg5 {[%clk 0:00:13]}  Kf7 {[%clk 0:00:26]} 45. Bxf6 {[%clk 0:00:14]}  exf6 {[%clk 0:00:24]} 46. Qh7+ {[%clk 0:00:13]}  Rg7 {[%clk 0:00:23]} 47. Qh5+ {[%clk 0:00:13]}  Kf8 {[%clk 0:00:20]} 48. Kd2 {[%clk 0:00:12]}  Rg8 {[%clk 0:00:16]} 49. Qh6+ {[%clk 0:00:12]}  Kf7 {[%clk 0:00:15]} 50. Qf4 {[%clk 0:00:13]}  Ke7 {[%clk 0:00:15]} 51. Qh6 {[%clk 0:00:12]}  Kf7 {[%clk 0:00:14]} 52. Qh7+ {[%clk 0:00:12]}  Rg7 {[%clk 0:00:15]} 53. Qh5+ {[%clk 0:00:13]}  Ke7 {[%clk 0:00:15]} 54. Ke2 {[%clk 0:00:13]}  Rf7 {[%clk 0:00:11]} 55. Kf3 {[%clk 0:00:12]}  Rg7 {[%clk 0:00:11]} 56. Qh6 {[%clk 0:00:12]}  Kf7 {[%clk 0:00:11]} 57. Qf4 {[%clk 0:00:11]}  Ke7 {[%clk 0:00:11]} 58. Qh4 {[%clk 0:00:12]}  Kf7 {[%clk 0:00:11]} 59. e4 {[%clk 0:00:12]}  fxe4+ {[%clk 0:00:11]} 60. Qxe4 {[%clk 0:00:09]}  Rg5 {[%clk 0:00:07]} 61. Qh7+ {[%clk 0:00:09]}  Rg7 {[%clk 0:00:07]} 62. Qh5+ {[%clk 0:00:09]}  Kf8 {[%clk 0:00:07]} 63. Kf4 {[%clk 0:00:09]}  Ke7 {[%clk 0:00:04]} 64. g4 {[%clk 0:00:09]}  Kf8 {[%clk 0:00:04]} 65. Qh6 {[%clk 0:00:09]}  Kf7 {[%clk 0:00:04]} 66. Qh8 {[%clk 0:00:07]}  Rxg4+ {[%clk 0:00:03]} 67. Ke3 {[%clk 0:00:08]} 1-0


[Site "https://www.chess.com"]

[Event "Titled Tuesday Blitz May 03 Late 2022"]
[White "Bernal Moro, Luis Javier"]
[Black "Kate1606"]
[WhiteFideId "2200236"]
[WhiteElo "2373"]
[BlackElo "2136"]
[Result "1-0"]
[Round "06"]
[TimeControl "180+1"]
[Date "2022.05.03"]
[WhiteClock "0:00:42"]
[BlackClock "0:00:01"]

1. c4 {[%clk 0:03:00]}  e5 {[%clk 0:02:55]} 2. Nc3 {[%clk 0:03:00]}  Nf6 {[%clk 0:02:54]} 3. Nf3 {[%clk 0:03:00]}  Nc6 {[%clk 0:02:52]} 4. e3 {[%clk 0:02:59]}  Bb4 {[%clk 0:02:51]} 5. Qc2 {[%clk 0:02:59]}  O-O {[%clk 0:02:51]} 6. Nd5 {[%clk 0:02:59]}  Nxd5 {[%clk 0:02:48]} 7. cxd5 {[%clk 0:02:58]}  Ne7 {[%clk 0:02:47]} 8. Nxe5 {[%clk 0:02:52]}  Nxd5 {[%clk 0:02:41]} 9. Qb3 {[%clk 0:02:33]}  c6 {[%clk 0:02:28]} 10. Bc4 {[%clk 0:02:31]}  Bd6 {[%clk 0:02:21]} 11. d4 {[%clk 0:02:10]}  Nb6 {[%clk 0:02:13]} 12. Nxf7 {[%clk 0:02:00]}  Qf6 {[%clk 0:01:54]} 13. Nxd6+ {[%clk 0:01:57]}  Nxc4 {[%clk 0:01:53]} 14. Qxc4+ {[%clk 0:01:52]}  Kh8 {[%clk 0:01:53]} 15. Ne4 {[%clk 0:01:50]}  Qg6 {[%clk 0:01:53]} 16. Ng3 {[%clk 0:01:47]}  d5 {[%clk 0:01:46]} 17. Qe2 {[%clk 0:01:43]}  Bg4 {[%clk 0:01:42]} 18. f3 {[%clk 0:01:42]}  Bd7 {[%clk 0:01:38]} 19. O-O {[%clk 0:01:39]}  Rae8 {[%clk 0:01:37]} 20. Bd2 {[%clk 0:01:32]}  h5 {[%clk 0:01:36]} 21. Qf2 {[%clk 0:01:28]}  h4 {[%clk 0:01:21]} 22. Ne2 {[%clk 0:01:27]}  h3 {[%clk 0:01:19]} 23. Nf4 {[%clk 0:01:23]}  Qg5 {[%clk 0:01:11]} 24. g4 {[%clk 0:01:16]}  c5 {[%clk 0:00:48]} 25. Nxh3 {[%clk 0:01:10]}  Qg6 {[%clk 0:00:47]} 26. Nf4 {[%clk 0:01:09]}  Qh6 {[%clk 0:00:42]} 27. Bc3 {[%clk 0:01:04]}  cxd4 {[%clk 0:00:39]} 28. Bxd4 {[%clk 0:01:04]}  b6 {[%clk 0:00:36]} 29. Rae1 {[%clk 0:01:03]}  Bb5 {[%clk 0:00:33]} 30. Qg3 {[%clk 0:00:55]}  Bxf1 {[%clk 0:00:31]} 31. Rxf1 {[%clk 0:00:54]}  Qg5 {[%clk 0:00:14]} 32. h4 {[%clk 0:00:48]}  Qd8 {[%clk 0:00:11]} 33. Nh5 {[%clk 0:00:47]}  Rf7 {[%clk 0:00:11]} 34. Rc1 {[%clk 0:00:46]}  Kg8 {[%clk 0:00:03]} 35. Rc6 {[%clk 0:00:44]}  Kh7 {[%clk 0:00:02]} 36. Kg2 {[%clk 0:00:42]}  g6 {[%clk 0:00:01]} 37. Nf4 {[%clk 0:00:42]} 1-0


[Site "https://www.chess.com"]

[Event "Titled Tuesday Blitz May 03 Late 2022"]
[White "Bifulco, Michel"]
[Black "Yurovskykh, Oleksandr"]
[WhiteFideId "828580"]
[BlackFideId "14134020"]
[WhiteElo "2165"]
[BlackElo "2292"]
[Result "1-0"]
[Round "06"]
[TimeControl "180+1"]
[Date "2022.05.03"]
[WhiteClock "0:02:01"]
[BlackClock "0:00:04"]

1. d4 {[%clk 0:03:00]}  d5 {[%clk 0:02:59]} 2. Nc3 {[%clk 0:03:00]}  Nf6 {[%clk 0:02:55]} 3. Bf4 {[%clk 0:03:01]}  e6 {[%clk 0:02:52]} 4. Nb5 {[%clk 0:03:01]}  Na6 {[%clk 0:02:47]} 5. e3 {[%clk 0:03:01]}  c6 {[%clk 0:02:45]} 6. Nc3 {[%clk 0:03:01]}  Nc7 {[%clk 0:02:39]} 7. a3 {[%clk 0:03:01]}  Bd6 {[%clk 0:02:39]} 8. Nf3 {[%clk 0:03:02]}  Bxf4 {[%clk 0:02:35]} 9. exf4 {[%clk 0:03:02]}  O-O {[%clk 0:02:34]} 10. Ne5 {[%clk 0:03:01]}  Nd7 {[%clk 0:02:20]} 11. Bd3 {[%clk 0:02:58]}  f6 {[%clk 0:02:06]} 12. Qh5 {[%clk 0:02:55]}  f5 {[%clk 0:01:48]} 13. O-O-O {[%clk 0:02:49]}  Nf6 {[%clk 0:01:26]} 14. Qh3 {[%clk 0:02:49]}  Ne4 {[%clk 0:01:23]} 15. Rdf1 {[%clk 0:02:44]}  Ne8 {[%clk 0:01:06]} 16. f3 {[%clk 0:02:44]}  Nxc3 {[%clk 0:00:57]} 17. bxc3 {[%clk 0:02:42]}  Nd6 {[%clk 0:00:43]} 18. g4 {[%clk 0:02:41]}  Qa5 {[%clk 0:00:30]} 19. Kd2 {[%clk 0:02:41]}  Nb5 {[%clk 0:00:20]} 20. Bxb5 {[%clk 0:02:38]}  Qxb5 {[%clk 0:00:20]} 21. Rhg1 {[%clk 0:02:36]}  c5 {[%clk 0:00:18]} 22. gxf5 {[%clk 0:02:34]}  exf5 {[%clk 0:00:13]} 23. Qh6 {[%clk 0:02:09]}  g6 {[%clk 0:00:04]} 24. Rxg6+ {[%clk 0:02:01]} 1-0


[Site "https://www.chess.com"]

[Event "Titled Tuesday Blitz May 03 Late 2022"]
[White "Mandura, Tijana"]
[Black "Vasquez Schroeder, Rodrigo"]
[WhiteFideId "16500270"]
[BlackFideId "3400042"]
[WhiteElo "2169"]
[BlackElo "2561"]
[Result "0-1"]
[Round "06"]
[TimeControl "180+1"]
[Date "2022.05.03"]
[WhiteClock "0:00:36"]
[BlackClock "0:00:17"]

1. e4 {[%clk 0:03:00]}  c5 {[%clk 0:02:59]} 2. Nf3 {[%clk 0:02:58]}  d6 {[%clk 0:02:59]} 3. Bb5+ {[%clk 0:02:57]}  Bd7 {[%clk 0:02:58]} 4. c4 {[%clk 0:02:56]}  Nc6 {[%clk 0:02:56]} 5. d4 {[%clk 0:02:55]}  cxd4 {[%clk 0:02:55]} 6. Nxd4 {[%clk 0:02:55]}  Nf6 {[%clk 0:02:55]} 7. Nc3 {[%clk 0:02:56]}  g6 {[%clk 0:02:49]} 8. O-O {[%clk 0:02:50]}  Bg7 {[%clk 0:02:49]} 9. Be3 {[%clk 0:02:50]}  O-O {[%clk 0:02:46]} 10. Bxc6 {[%clk 0:02:43]}  bxc6 {[%clk 0:02:46]} 11. c5 {[%clk 0:02:43]}  Re8 {[%clk 0:02:34]} 12. cxd6 {[%clk 0:02:40]}  exd6 {[%clk 0:02:34]} 13. Qd3 {[%clk 0:02:33]}  Ng4 {[%clk 0:02:31]} 14. Bf4 {[%clk 0:02:33]}  Ne5 {[%clk 0:02:28]} 15. Qa6 {[%clk 0:02:29]}  Qb6 {[%clk 0:02:23]} 16. Qxb6 {[%clk 0:02:16]}  axb6 {[%clk 0:02:24]} 17. Rfd1 {[%clk 0:02:13]}  Bf8 {[%clk 0:02:13]} 18. Rac1 {[%clk 0:02:13]}  b5 {[%clk 0:02:12]} 19. a3 {[%clk 0:02:12]}  Nc4 {[%clk 0:02:11]} 20. Rc2 {[%clk 0:02:08]}  Bg7 {[%clk 0:01:58]} 21. Kf1 {[%clk 0:01:57]}  Bf8 {[%clk 0:01:40]} 22. h4 {[%clk 0:01:50]}  h5 {[%clk 0:01:37]} 23. Nf3 {[%clk 0:01:47]}  Bg4 {[%clk 0:01:35]} 24. Rd3 {[%clk 0:01:45]}  Rab8 {[%clk 0:01:24]} 25. Na2 {[%clk 0:01:43]}  Rxe4 {[%clk 0:01:20]} 26. Bg5 {[%clk 0:01:34]}  Rbe8 {[%clk 0:01:13]} 27. Nb4 {[%clk 0:01:34]}  Bd7 {[%clk 0:01:05]} 28. g3 {[%clk 0:01:24]}  d5 {[%clk 0:00:55]} 29. Nd4 {[%clk 0:01:14]}  c5 {[%clk 0:00:39]} 30. Nxd5 {[%clk 0:01:13]}  Bh3+ {[%clk 0:00:39]} 31. Kg1 {[%clk 0:01:11]}  cxd4 {[%clk 0:00:37]} 32. Nf6+ {[%clk 0:01:09]}  Kg7 {[%clk 0:00:37]} 33. Nxe8+ {[%clk 0:01:08]}  Rxe8 {[%clk 0:00:38]} 34. Rxd4 {[%clk 0:01:08]}  Bf5 {[%clk 0:00:34]} 35. Rc3 {[%clk 0:00:59]}  Nxb2 {[%clk 0:00:32]} 36. Rb3 {[%clk 0:00:59]}  Bc5 {[%clk 0:00:20]} 37. Rd5 {[%clk 0:00:54]}  Re1+ {[%clk 0:00:20]} 38. Kh2 {[%clk 0:00:52]}  Be4 {[%clk 0:00:19]} 39. f3 {[%clk 0:00:37]}  Bxd5 {[%clk 0:00:19]} 40. Rxb2 {[%clk 0:00:37]}  Bxf3 {[%clk 0:00:18]} 41. Rxb5 {[%clk 0:00:36]}  Rh1# {[%clk 0:00:17]} 0-1


[Site "https://www.chess.com"]

[Event "Titled Tuesday Blitz May 03 Late 2022"]
[White "Deac, Bogdan-Daniel"]
[Black "Moiseenko, Alexander"]
[WhiteFideId "1226380"]
[BlackFideId "14102560"]
[WhiteElo "2648"]
[BlackElo "2577"]
[Result "1-0"]
[Round "06"]
[TimeControl "180+1"]
[Date "2022.05.03"]
[WhiteClock "0:00:08"]
[BlackClock "0:00:01"]

1. d4 {[%clk 0:03:00]}  Nf6 {[%clk 0:02:59]} 2. c4 {[%clk 0:03:01]}  e6 {[%clk 0:02:59]} 3. Nc3 {[%clk 0:03:01]}  Bb4 {[%clk 0:02:59]} 4. f3 {[%clk 0:03:01]}  c5 {[%clk 0:02:57]} 5. d5 {[%clk 0:03:01]}  d6 {[%clk 0:02:56]} 6. e4 {[%clk 0:03:01]}  b5 {[%clk 0:02:55]} 7. Bd2 {[%clk 0:03:01]}  a6 {[%clk 0:02:54]} 8. a4 {[%clk 0:02:59]}  bxc4 {[%clk 0:02:49]} 9. Bxc4 {[%clk 0:02:58]}  O-O {[%clk 0:02:24]} 10. Nge2 {[%clk 0:02:57]}  Nbd7 {[%clk 0:02:21]} 11. dxe6 {[%clk 0:02:54]}  Ne5 {[%clk 0:02:21]} 12. exf7+ {[%clk 0:02:50]}  Kh8 {[%clk 0:02:20]} 13. b3 {[%clk 0:02:47]}  Nxc4 {[%clk 0:02:14]} 14. bxc4 {[%clk 0:02:47]}  Be6 {[%clk 0:02:03]} 15. Nd5 {[%clk 0:02:42]}  a5 {[%clk 0:02:03]} 16. O-O {[%clk 0:02:36]}  Nxd5 {[%clk 0:02:03]} 17. cxd5 {[%clk 0:02:36]}  Bxf7 {[%clk 0:02:03]} 18. Bc3 {[%clk 0:02:28]}  Rb8 {[%clk 0:02:01]} 19. Qd2 {[%clk 0:02:25]}  Qe7 {[%clk 0:01:56]} 20. Ng3 {[%clk 0:02:07]}  Bg6 {[%clk 0:01:48]} 21. Rfe1 {[%clk 0:01:50]}  Qf6 {[%clk 0:01:28]} 22. Bxf6 {[%clk 0:01:11]}  Bxd2 {[%clk 0:01:27]} 23. Re2 {[%clk 0:01:03]}  gxf6 {[%clk 0:01:02]} 24. Rxd2 {[%clk 0:01:03]}  Rb4 {[%clk 0:01:02]} 25. Nf1 {[%clk 0:01:03]}  f5 {[%clk 0:00:51]} 26. e5 {[%clk 0:00:58]}  dxe5 {[%clk 0:00:50]} 27. d6 {[%clk 0:00:55]}  c4 {[%clk 0:00:48]} 28. Rd5 {[%clk 0:00:49]}  Rd8 {[%clk 0:00:45]} 29. Rxa5 {[%clk 0:00:35]}  Rxd6 {[%clk 0:00:42]} 30. Ra8+ {[%clk 0:00:28]}  Kg7 {[%clk 0:00:40]} 31. a5 {[%clk 0:00:28]}  c3 {[%clk 0:00:13]} 32. Rc8 {[%clk 0:00:23]}  Ra6 {[%clk 0:00:05]} 33. Rxc3 {[%clk 0:00:21]}  Rb5 {[%clk 0:00:05]} 34. Rca3 {[%clk 0:00:21]}  f4 {[%clk 0:00:05]} 35. Nd2 {[%clk 0:00:20]}  Bf7 {[%clk 0:00:05]} 36. Ne4 {[%clk 0:00:19]}  Rb4 {[%clk 0:00:05]} 37. Nc5 {[%clk 0:00:16]}  Ra7 {[%clk 0:00:04]} 38. a6 {[%clk 0:00:14]}  Rb5 {[%clk 0:00:05]} 39. Ra5 {[%clk 0:00:14]}  Rxa5 {[%clk 0:00:05]} 40. Rxa5 {[%clk 0:00:15]}  Bc4 {[%clk 0:00:05]} 41. g3 {[%clk 0:00:13]}  fxg3 {[%clk 0:00:05]} 42. hxg3 {[%clk 0:00:14]}  h6 {[%clk 0:00:05]} 43. Kf2 {[%clk 0:00:13]}  Kg6 {[%clk 0:00:05]} 44. Ke3 {[%clk 0:00:13]}  Kf5 {[%clk 0:00:06]} 45. g4+ {[%clk 0:00:12]}  Kf6 {[%clk 0:00:05]} 46. Ra4 {[%clk 0:00:12]}  Bb5 {[%clk 0:00:05]} 47. Ra3 {[%clk 0:00:12]}  Bc4 {[%clk 0:00:06]} 48. Ra5 {[%clk 0:00:11]}  Bf1 {[%clk 0:00:05]} 49. Ke4 {[%clk 0:00:11]}  Be2 {[%clk 0:00:04]} 50. Ke3 {[%clk 0:00:09]}  Bf1 {[%clk 0:00:04]} 51. Nd3 {[%clk 0:00:07]}  Bxd3 {[%clk 0:00:01]} 52. Kxd3 {[%clk 0:00:07]}  Kg5 {[%clk 0:00:02]} 53. Ke4 {[%clk 0:00:07]}  Kf6 {[%clk 0:00:02]} 54. Kd5 {[%clk 0:00:07]}  Rd7+ {[%clk 0:00:02]} 55. Kc6 {[%clk 0:00:07]}  Ra7 {[%clk 0:00:01]} 56. Kb6 {[%clk 0:00:08]} 1-0


[Site "https://www.chess.com"]

[Event "Titled Tuesday Blitz May 03 Late 2022"]
[White "Derraugh, Geordie"]
[Black "Barria Zuniga, Daniel"]
[WhiteFideId "2603950"]
[BlackFideId "3400816"]
[WhiteElo "2116"]
[BlackElo "2414"]
[Result "1-0"]
[Round "06"]
[TimeControl "180+1"]
[Date "2022.05.03"]
[WhiteClock "0:00:18"]
[BlackClock "0:00:35"]

1. e4 {[%clk 0:03:00]}  e6 {[%clk 0:02:56]} 2. d4 {[%clk 0:03:00]}  d5 {[%clk 0:02:56]} 3. Nd2 {[%clk 0:03:00]}  c5 {[%clk 0:02:55]} 4. Ngf3 {[%clk 0:03:00]}  cxd4 {[%clk 0:02:53]} 5. exd5 {[%clk 0:03:00]}  Qxd5 {[%clk 0:02:51]} 6. Bc4 {[%clk 0:03:00]}  Qd8 {[%clk 0:02:49]} 7. O-O {[%clk 0:03:00]}  Nc6 {[%clk 0:02:44]} 8. Nb3 {[%clk 0:03:00]}  Nf6 {[%clk 0:02:44]} 9. Nbxd4 {[%clk 0:03:00]}  Nxd4 {[%clk 0:02:44]} 10. Qxd4 {[%clk 0:03:00]}  Qxd4 {[%clk 0:02:43]} 11. Nxd4 {[%clk 0:03:01]}  Bc5 {[%clk 0:02:43]} 12. Nb3 {[%clk 0:02:59]}  Bd6 {[%clk 0:02:42]} 13. Rd1 {[%clk 0:02:57]}  Ke7 {[%clk 0:02:42]} 14. Nd4 {[%clk 0:02:49]}  a6 {[%clk 0:02:38]} 15. a4 {[%clk 0:02:48]}  Bd7 {[%clk 0:02:38]} 16. b3 {[%clk 0:02:48]}  Rhc8 {[%clk 0:02:34]} 17. Bb2 {[%clk 0:02:41]}  g6 {[%clk 0:01:25]} 18. Nf3 {[%clk 0:02:22]}  Ne4 {[%clk 0:01:11]} 19. Rd4 {[%clk 0:01:51]}  f5 {[%clk 0:01:05]} 20. Rad1 {[%clk 0:01:49]}  Bc6 {[%clk 0:00:57]} 21. R4d3 {[%clk 0:00:32]}  b5 {[%clk 0:00:51]} 22. axb5 {[%clk 0:00:27]}  axb5 {[%clk 0:00:51]} 23. Bxe6 {[%clk 0:00:26]}  Kxe6 {[%clk 0:00:51]} 24. Ng5+ {[%clk 0:00:27]}  Ke7 {[%clk 0:00:43]} 25. Nxe4 {[%clk 0:00:26]}  Bxe4 {[%clk 0:00:43]} 26. Rxd6 {[%clk 0:00:26]}  Rxc2 {[%clk 0:00:43]} 27. Rd7+ {[%clk 0:00:25]}  Ke8 {[%clk 0:00:42]} 28. Bf6 {[%clk 0:00:19]}  Rc1 {[%clk 0:00:36]} 29. Re7+ {[%clk 0:00:18]}  Kf8 {[%clk 0:00:35]} 30. Rxc1 {[%clk 0:00:18]} 1-0


[Site "https://www.chess.com"]

[Event "Titled Tuesday Blitz May 03 Late 2022"]
[White "Djokic, Mihailo"]
[Black "Wagner, Dennis"]
[WhiteFideId "976440"]
[BlackFideId "24650684"]
[WhiteElo "2202"]
[BlackElo "2355"]
[Result "1-0"]
[Round "06"]
[TimeControl "180+1"]
[Date "2022.05.03"]
[WhiteClock "0:00:05"]
[BlackClock "0:00:04"]

1. e4 {[%clk 0:03:00]}  c5 {[%clk 0:02:59]} 2. Nf3 {[%clk 0:03:00]}  d6 {[%clk 0:03:00]} 3. d4 {[%clk 0:03:00]}  cxd4 {[%clk 0:03:01]} 4. Nxd4 {[%clk 0:03:01]}  Nf6 {[%clk 0:03:02]} 5. Nc3 {[%clk 0:03:01]}  a6 {[%clk 0:03:02]} 6. Rg1 {[%clk 0:03:02]}  Nc6 {[%clk 0:02:53]} 7. g4 {[%clk 0:03:01]}  h6 {[%clk 0:02:54]} 8. h4 {[%clk 0:03:01]}  Nxd4 {[%clk 0:02:31]} 9. Qxd4 {[%clk 0:03:00]}  e5 {[%clk 0:02:31]} 10. Qd1 {[%clk 0:03:00]}  Be6 {[%clk 0:02:24]} 11. g5 {[%clk 0:03:00]}  hxg5 {[%clk 0:02:23]} 12. hxg5 {[%clk 0:02:59]}  Nh5 {[%clk 0:02:18]} 13. Be3 {[%clk 0:02:43]}  Rc8 {[%clk 0:01:52]} 14. Rh1 {[%clk 0:02:24]}  g6 {[%clk 0:01:45]} 15. Qd2 {[%clk 0:02:24]}  Be7 {[%clk 0:01:44]} 16. O-O-O {[%clk 0:02:21]}  b5 {[%clk 0:01:40]} 17. Nd5 {[%clk 0:02:17]}  Bxd5 {[%clk 0:01:40]} 18. exd5 {[%clk 0:02:00]}  Rg8 {[%clk 0:01:40]} 19. Kb1 {[%clk 0:01:58]}  Kf8 {[%clk 0:01:35]} 20. Be2 {[%clk 0:01:41]}  Nf4 {[%clk 0:01:34]} 21. Bxf4 {[%clk 0:01:30]}  exf4 {[%clk 0:01:35]} 22. Qxf4 {[%clk 0:01:27]}  Bxg5 {[%clk 0:01:36]} 23. Qg4 {[%clk 0:01:22]}  Bf6 {[%clk 0:01:31]} 24. Rh7 {[%clk 0:01:20]}  Qc7 {[%clk 0:01:24]} 25. Bd3 {[%clk 0:01:10]}  Re8 {[%clk 0:01:00]} 26. a3 {[%clk 0:00:47]}  Qe7 {[%clk 0:00:58]} 27. Qf3 {[%clk 0:00:42]}  Qe5 {[%clk 0:00:56]} 28. c3 {[%clk 0:00:41]}  Rh8 {[%clk 0:00:50]} 29. Rxh8+ {[%clk 0:00:39]}  Bxh8 {[%clk 0:00:51]} 30. Bxg6 {[%clk 0:00:39]}  Qf6 {[%clk 0:00:47]} 31. Be4 {[%clk 0:00:25]}  Qxf3 {[%clk 0:00:42]} 32. Bxf3 {[%clk 0:00:26]}  Re5 {[%clk 0:00:42]} 33. Rh1 {[%clk 0:00:25]}  Bf6 {[%clk 0:00:42]} 34. Kc2 {[%clk 0:00:15]}  Rf5 {[%clk 0:00:42]} 35. Rh3 {[%clk 0:00:14]}  Rf4 {[%clk 0:00:42]} 36. Kd3 {[%clk 0:00:14]}  Bg5 {[%clk 0:00:41]} 37. Ke2 {[%clk 0:00:14]}  Kg7 {[%clk 0:00:39]} 38. Rg3 {[%clk 0:00:14]}  Kf6 {[%clk 0:00:40]} 39. Rh3 {[%clk 0:00:14]}  a5 {[%clk 0:00:39]} 40. Rh8 {[%clk 0:00:13]}  b4 {[%clk 0:00:40]} 41. axb4 {[%clk 0:00:13]}  axb4 {[%clk 0:00:40]} 42. Rd8 {[%clk 0:00:12]}  bxc3 {[%clk 0:00:40]} 43. bxc3 {[%clk 0:00:12]}  Ke7 {[%clk 0:00:35]} 44. Ra8 {[%clk 0:00:12]}  Rc4 {[%clk 0:00:33]} 45. Ra7+ {[%clk 0:00:12]}  Kf6 {[%clk 0:00:32]} 46. Kd3 {[%clk 0:00:10]}  Rh4 {[%clk 0:00:31]} 47. Be4 {[%clk 0:00:08]}  Rh3+ {[%clk 0:00:30]} 48. f3 {[%clk 0:00:08]}  Rh2 {[%clk 0:00:30]} 49. Ra6 {[%clk 0:00:07]}  Ke5 {[%clk 0:00:30]} 50. Kc4 {[%clk 0:00:06]}  f5 {[%clk 0:00:29]} 51. Bd3 {[%clk 0:00:07]}  Rf2 {[%clk 0:00:27]} 52. Ra8 {[%clk 0:00:05]}  Rxf3 {[%clk 0:00:14]} 53. Re8+ {[%clk 0:00:06]}  Kf4 {[%clk 0:00:14]} 54. Rf8 {[%clk 0:00:05]}  Ke5 {[%clk 0:00:10]} 55. Re8+ {[%clk 0:00:05]}  Kf4 {[%clk 0:00:09]} 56. Re6 {[%clk 0:00:06]}  Rf2 {[%clk 0:00:02]} 57. Rxd6 {[%clk 0:00:06]}  Ra2 {[%clk 0:00:03]} 58. Rd7 {[%clk 0:00:04]}  Ra4+ {[%clk 0:00:03]} 59. Kb3 {[%clk 0:00:05]}  Ra8 {[%clk 0:00:02]} 60. Rf7 {[%clk 0:00:05]}  Rb8+ {[%clk 0:00:02]} 61. Kc2 {[%clk 0:00:05]}  Ke3 {[%clk 0:00:02]} 62. Rxf5 {[%clk 0:00:05]}  Bf4 {[%clk 0:00:02]} 63. Rf7 {[%clk 0:00:04]}  Rc8 {[%clk 0:00:03]} 64. Re7+ {[%clk 0:00:05]}  Kf3 {[%clk 0:00:03]} 65. c4 {[%clk 0:00:05]}  Be3 {[%clk 0:00:03]} 66. Rf7+ {[%clk 0:00:05]}  Kg4 {[%clk 0:00:03]} 67. Bf5+ {[%clk 0:00:04]}  Kg5 {[%clk 0:00:04]} 68. Bxc8 {[%clk 0:00:05]} 1-0


[Site "https://www.chess.com"]

[Event "Titled Tuesday Blitz May 03 Late 2022"]
[White "Ferreira, Vitor Hugo Vieira"]
[Black "Gomez Dieguez, David"]
[WhiteFideId "2119765"]
[BlackFideId "22223630"]
[WhiteElo "2165"]
[BlackElo "2115"]
[Result "1-0"]
[Round "06"]
[TimeControl "180+1"]
[Date "2022.05.03"]
[WhiteClock "0:01:42"]
[BlackClock "0:00:03"]

1. d4 {[%clk 0:02:57]}  Nf6 {[%clk 0:02:59]} 2. c4 {[%clk 0:02:56]}  e6 {[%clk 0:02:59]} 3. Nf3 {[%clk 0:02:56]}  d5 {[%clk 0:02:59]} 4. Nc3 {[%clk 0:02:56]}  c5 {[%clk 0:02:59]} 5. Bg5 {[%clk 0:02:55]}  cxd4 {[%clk 0:02:56]} 6. Nxd4 {[%clk 0:02:52]}  e5 {[%clk 0:02:54]} 7. Nc2 {[%clk 0:02:49]}  d4 {[%clk 0:02:54]} 8. Ne4 {[%clk 0:02:49]}  Be7 {[%clk 0:02:52]} 9. Nxf6+ {[%clk 0:02:49]}  Bxf6 {[%clk 0:02:47]} 10. Bxf6 {[%clk 0:02:49]}  Qxf6 {[%clk 0:02:47]} 11. e3 {[%clk 0:02:50]}  Nc6 {[%clk 0:02:42]} 12. exd4 {[%clk 0:02:50]}  exd4 {[%clk 0:02:42]} 13. Bd3 {[%clk 0:02:49]}  O-O {[%clk 0:02:36]} 14. O-O {[%clk 0:02:49]}  Be6 {[%clk 0:02:25]} 15. Qd2 {[%clk 0:02:46]}  a5 {[%clk 0:02:20]} 16. Rad1 {[%clk 0:02:46]}  Rfd8 {[%clk 0:02:19]} 17. b3 {[%clk 0:02:45]}  g6 {[%clk 0:02:16]} 18. Be4 {[%clk 0:02:45]}  Rac8 {[%clk 0:02:10]} 19. Bxc6 {[%clk 0:02:35]}  bxc6 {[%clk 0:02:10]} 20. Qxa5 {[%clk 0:02:35]}  Ra8 {[%clk 0:01:56]} 21. Qc5 {[%clk 0:02:35]}  d3 {[%clk 0:01:40]} 22. Nb4 {[%clk 0:02:35]}  d2 {[%clk 0:01:35]} 23. Nxc6 {[%clk 0:02:34]}  Rd3 {[%clk 0:01:21]} 24. Ne5 {[%clk 0:02:28]}  Rc8 {[%clk 0:00:56]} 25. Nxd3 {[%clk 0:02:19]}  Rxc5 {[%clk 0:00:50]} 26. Nxc5 {[%clk 0:02:20]}  Qd4 {[%clk 0:00:44]} 27. Nxe6 {[%clk 0:02:20]}  fxe6 {[%clk 0:00:45]} 28. Ra1 {[%clk 0:02:15]}  Qc3 {[%clk 0:00:28]} 29. a4 {[%clk 0:02:15]}  Qxb3 {[%clk 0:00:28]} 30. a5 {[%clk 0:02:16]}  Qxc4 {[%clk 0:00:20]} 31. a6 {[%clk 0:02:16]}  Qc8 {[%clk 0:00:20]} 32. a7 {[%clk 0:02:17]}  Qa8 {[%clk 0:00:20]} 33. Rfb1 {[%clk 0:02:17]}  Kg7 {[%clk 0:00:19]} 34. Ra2 {[%clk 0:02:10]}  Kh6 {[%clk 0:00:13]} 35. Rd1 {[%clk 0:02:05]}  Qe4 {[%clk 0:00:08]} 36. Raxd2 {[%clk 0:01:57]}  Qa4 {[%clk 0:00:07]} 37. Rd7 {[%clk 0:01:57]}  e5 {[%clk 0:00:04]} 38. g3 {[%clk 0:01:56]}  e4 {[%clk 0:00:04]} 39. R1d4 {[%clk 0:01:54]}  Qa1+ {[%clk 0:00:03]} 40. Kg2 {[%clk 0:01:55]}  e3 {[%clk 0:00:03]} 41. Rh4+ {[%clk 0:01:54]}  Kg5 {[%clk 0:00:03]} 42. fxe3 {[%clk 0:01:46]}  Qa2+ {[%clk 0:00:03]} 43. Kf3 {[%clk 0:01:42]} 1-0


[Site "https://www.chess.com"]